bitfinex/quotes_ETHUSD_20240825
["timestamp","ask_amount","ask_price","bid_price","bid_amount"]
[1724573349522,3.6335,2752.2,2751.6,3.63423]
[1724573349727,3.63334,2752.3,2751.6,3.63423]
[1724573350079,3.63334,2752.3,2751.7,3.63411]
[1724573350286,3.63348,2752.2,2751.8,0.363411]
[1724573350591,5.96802,2752.0,2751.5,7.34]
[1724573351376,3.63394,2751.9,2751.3,3.63453]
[1724573351576,3.63394,2751.9,2751.2,2.4457]
[1724573351577,5.96802,2752.0,2751.2,6.08046]
[1724573351781,3.63398,2751.8,2751.2,6.08046]
[1724573352223,3.63398,2751.8,2751.2,3.63476]
[1724573352776,3.63398,2751.8,2751.2,4.79583313]
[1724573353176,3.63398,2751.8,2751.2,1.16107313]
[1724573353441,3.63421,2751.7,2751.2,1.16107313]
[1724573353601,2.3343,2751.6,2751.2,1.16107313]
[1724573353923,2.3343,2751.6,2751.0,3.63502]
[1724573354448,3.63476,2751.3,2750.7,3.63543]
[1724573354730,3.63476,2751.3,2750.6,0.7597709]
[1724573354731,3.63476,2751.3,2750.6,3.63547]
[1724573355079,6.71426065,2751.3,2750.6,3.63547]
[1724573355331,3.63491,2751.1,2750.5,3.63569]
[1724573355764,3.63491,2751.1,2750.4,3.63575]
[1724573356540,2.3343,2751.2,2750.6,3.63556]
[1724573358747,3.07950065,2751.6,2750.6,3.63548]
[1724573358951,2.3253,2751.5,2750.8,3.63523]
[1724573359277,3.6344,2751.5,2750.9,0.07269467]
[1724573359407,7.2684,2751.7,2750.9,3.70777467]
[1724573359715,3.63426,2751.6,2750.9,3.70777467]
[1724573360460,3.63391,2751.9,2751.1,6.09489]
[1724573360747,3.63391,2751.9,2751.2,0.68944083]
[1724573360947,3.634,2751.8,2751.3,0.07268319]
[1724573361147,3.634,2751.8,2751.1,6.09489]
[1724573361316,3.63391,2751.9,2751.1,6.09489]
[1724573361650,3.63391,2751.9,2751.2,4.244179]
[1724573362624,5.95893,2752.1,2751.2,4.244189]
[1724573362823,5.95893,2752.1,2751.4,3.63443]
[1724573363101,3.07950065,2752.2,2751.6,2.3516]
[1724573363278,7.26681,2752.3,2751.6,2.3516]
[1724573363279,3.63342,2752.3,2751.6,2.3516]
[1724573363567,3.63342,2752.3,2751.7,0.598587]
[1724573363773,3.63312,2752.5,2751.8,0.07267294]
[1724573363919,3.63312,2752.5,2751.8,3.63387]
[1724573364122,0.1315729,2752.6,2751.8,3.63387]
[1724573364381,0.1315729,2752.6,2752.0,3.63369]
[1724573364568,0.1315729,2752.6,2752.1,2.3516]
[1724573365068,0.1315729,2752.6,2751.7,0.598587]
[1724573365069,3.63322,2752.4,2751.7,6.584297]
[1724573365225,0.1315729,2752.6,2751.7,6.584297]
[1724573365226,3.63318,2752.5,2751.7,6.584297]
[1724573365427,3.63318,2752.5,2751.8,3.63393]
[1724573365653,3.63318,2752.5,2751.9,0.6584117]
[1724573366266,3.63317,2752.5,2751.9,0.6584117]
[1724573367802,0.1315729,2752.6,2751.9,4.2922417]
[1724573368000,3.7646029,2752.6,2751.9,0.6584117]
[1724573368357,3.63306,2752.5,2751.9,0.6584117]
[1724573369110,3.63306,2752.5,2751.8,3.63393]
[1724573369313,3.63349,2752.2,2751.5,3.63428]
[1724573369453,3.63349,2752.2,2751.4,12.6916]
[1724573369454,5.53850065,2752.4,2751.8,3.63398]
[1724573369657,0.1315729,2752.6,2751.9,2.3516]
[1724573369967,0.1315729,2752.6,2752.0,3.63371]
[1724573370547,0.1315729,2752.6,2752.2,3.63339]
[1724573371312,0.1315729,2752.6,2752.0,7.26729]
[1724573371452,0.1315729,2752.6,2752.1,3.63358]
[1724573373811,6.2236129,2752.6,2751.9,2.950158]
[1724573373971,3.63314,2752.5,2751.9,2.950158]
[1724573374584,3.63328,2752.4,2751.7,3.63403]
[1724573374782,3.63328,2752.4,2751.8,3.63397]
[1724573375042,6.2236029,2752.6,2751.8,3.63397]
[1724573375190,6.2236029,2752.6,2751.8,3.63387]
[1724573375191,3.6332,2752.4,2751.8,3.63387]
[1724573375391,3.6332,2752.4,2751.8,0.961966]
[1724573375622,3.6332,2752.4,2751.8,4.595936]
[1724573376426,3.7645529,2752.6,2751.9,3.63382]
[1724573376991,3.7645529,2752.6,2752.0,2.3931]
[1724573378289,7.3975929,2752.6,2752.0,2.3931]
[1724573378493,3.7645529,2752.6,2752.0,2.3931]
[1724573379316,4.68901825,2752.6,2752.0,2.3931]
[1724573379996,3.63307,2752.5,2752.0,2.3931]
[1724573380192,3.7645529,2752.6,2752.0,2.3931]
[1724573381746,7.3975829,2752.6,2752.0,2.3931]
[1724573381910,3.7645529,2752.6,2752.0,2.3931]
[1724573382614,3.7645529,2752.6,2752.0,6.02681]
[1724573383113,7.3975729,2752.6,2752.0,6.02681]
[1724573383498,3.7645529,2752.6,2752.0,6.02681]
[1724573383699,3.7645529,2752.6,2752.1,0.602681]
[1724573385147,0.1315729,2752.6,2752.1,0.602681]
[1724573385440,0.1315729,2752.6,2752.1,4.236251]
[1724573385646,0.1315729,2752.6,2752.1,0.602681]
[1724573385857,0.1315729,2752.6,2752.0,2.3931]
[1724573386224,3.7645329,2752.6,2752.0,6.02674]
[1724573386412,3.7645329,2752.6,2752.0,9.66035]
[1724573386608,0.1315729,2752.6,2752.0,6.02671]
[1724573386812,0.1315729,2752.6,2752.1,3.63358]
[1724573387714,3.7645029,2752.6,2752.0,2.3931]
[1724573387950,3.7645029,2752.6,2752.0,6.02678]
[1724573388621,3.7645029,2752.6,2752.0,2.3931]
[1724573388822,3.7645029,2752.6,2751.4,10.34]
[1724573388823,3.63385,2752.0,2751.4,7.34]
[1724573389032,3.6338,2752.0,2751.3,5.94441]
[1724573389229,3.6338,2752.0,2751.3,2.3098]
[1724573389230,3.63407,2751.8,2751.3,2.3098]
[1724573389609,5.99902,2752.0,2751.3,2.3098]
[1724573389610,9.63284,2752.0,2751.3,2.3098]
[1724573389768,7.27025407,2752.0,2751.3,2.3098]
[1724573390270,7.27025407,2752.0,2751.0,5.94483]
[1724573390271,3.63426,2751.6,2751.0,5.94483]
[1724573390446,3.63426,2751.6,2751.0,5.94481]
[1724573391264,10.34768065,2751.8,2751.1,3.63487]
[1724573391408,6.71358065,2751.8,2751.2,3.63477]
[1724573391614,6.71358065,2751.8,2751.2,4.592714]
[1724573393217,3.63361,2752.1,2751.4,2.3098]
[1724573393460,7.46,2752.2,2751.6,3.63413]
[1724573393702,3.63333,2752.3,2751.6,4.228523]
[1724573394854,3.63333,2752.3,2751.7,5.94389]
[1724573395055,6.71275065,2752.4,2751.7,5.94389]
[1724573395309,3.63333,2752.3,2751.7,5.94389]
[1724573396160,3.63333,2752.3,2751.7,2.3098]
[1724573396400,3.63333,2752.3,2751.7,3.3270893]
[1724573397310,3.63346,2752.2,2751.7,3.3270893]
[1724573397476,3.63346,2752.2,2751.7,2.3098]
[1724573397863,3.63366,2752.1,2751.7,2.3098]
[1724573398061,3.63366,2752.1,2751.5,3.63428]
[1724573398286,6.71316065,2752.1,2751.5,3.63428]
[1724573399290,3.63374,2752.0,2751.5,1.700326]
[1724573399905,5.56920065,2752.1,2751.3,9.7344]
[1724573400073,3.63407,2751.8,2751.3,9.7344]
[1724573400416,7.26818,2751.8,2751.3,9.7344]
[1724573400717,3.63376,2752.0,2751.3,9.7344]
[1724573400927,3.63376,2752.0,2751.4,0.97344]
[1724573401294,7.26757,2752.0,2751.4,0.97344]
[1724573401497,7.26757,2752.0,2751.3,13.36895]
[1724573401498,3.63406,2751.8,2751.3,9.7344]
[1724573401828,5.56920065,2752.1,2751.4,3.63446]
[1724573401829,3.63364,2752.1,2751.4,3.63446]
[1724573402127,7.26732,2752.1,2751.4,3.63446]
[1724573402476,3.63364,2752.1,2751.4,7.26889]
[1724573402921,3.63364,2752.1,2751.4,3.63443]
[1724573403074,3.63364,2752.1,2751.5,1.336883]
[1724573403680,3.63354,2752.2,2751.5,1.336883]
[1724573403881,3.63354,2752.2,2751.6,2.4605]
[1724573404715,3.63354,2752.2,2751.6,6.09473]
[1724573405240,3.63354,2752.2,2751.6,6.09466]
[1724573405455,0.1315729,2752.6,2752.0,3.6336]
[1724573405667,0.1315729,2752.6,2752.1,2.4605]
[1724573405944,0.1315729,2752.6,2752.3,3.6333]
[1724573407299,0.1315729,2752.6,2752.2,0.07265834]
[1724573407508,0.1315729,2752.6,2752.3,0.61667283]
[1724573408511,3.6332,2752.4,2751.8,6.1105]
[1724573409423,3.63357,2752.2,2751.5,6.11089]
[1724573409824,3.63357,2752.2,2751.6,3.63416]
[1724573410257,3.6336,2752.1,2751.5,2.4766]
[1724573410463,3.6338,2752.0,2751.5,3.0877]
[1724573411108,9.67263,2752.2,2751.5,3.0877]
[1724573411339,3.63332,2752.3,2751.5,3.0877]
[1724573411538,3.63332,2752.3,2751.7,3.6341]
[1724573412660,3.63332,2752.3,2751.6,7.26831]
[1724573412863,6.03857,2752.5,2751.3,2.4766]
[1724573412864,3.63385,2751.9,2751.3,2.4766]
[1724573413020,3.07950065,2751.8,2751.2,7.26948]
[1724573413219,3.63385,2751.9,2751.2,8.244088]
[1724573413620,3.63385,2751.9,2751.3,3.63463]
[1724573414332,3.63385,2751.9,2751.2,4.609348]
[1724573414534,2.4055,2752.0,2751.2,4.609278]
[1724573414735,6.03932,2752.0,2751.4,3.63451]
[1724573414939,3.63388,2751.9,2751.3,0.7085878]
[1724573417357,3.63388,2751.9,2751.3,4.3432078]
[1724573418846,2.4055,2752.0,2751.4,3.63449]
[1724573419265,6.03931,2752.0,2751.4,3.63449]
[1724573419559,3.63387,2751.9,2751.3,0.7085878]
[1724573420333,3.63387,2751.9,2751.1,2.4766]
[1724573420334,3.6342,2751.7,2751.1,2.4766]
[1724573420668,3.6342,2751.7,2751.0,3.63494]
[1724573420819,3.07950065,2751.8,2751.0,3.63494]
[1724573421168,6.71352065,2751.8,2751.2,3.63474]
[1724573422138,3.63392,2751.9,2751.3,3.63461]
[1724573422471,3.63392,2751.9,2751.3,2.2759]
[1724573422822,7.26734,2752.1,2751.4,3.63451]
[1724573423021,3.63365,2752.1,2751.4,3.63451]
[1724573423221,3.63384,2752.0,2751.4,3.63451]
[1724573423516,3.63385,2751.9,2751.4,0.954513]
[1724573423735,3.63385,2751.9,2751.3,5.91054]
[1724573425173,5.92021,2751.8,2751.0,3.63496]
[1724573425326,3.63413,2751.7,2751.1,3.6349]
[1724573427422,3.63427,2751.6,2750.9,5.91098]
[1724573427662,7.2686,2751.6,2750.9,7.80161757]
[1724573427869,3.63427,2751.6,2750.9,11.43669757]
[1724573428054,3.63427,2751.6,2751.0,3.63502]
[1724573428256,7.2686,2751.6,2750.9,7.80161757]
[1724573428461,3.63427,2751.6,2750.9,7.80161757]
[1724573428766,3.63427,2751.6,2751.0,0.96972772]
[1724573429825,7.26863,2751.6,2751.0,0.96972772]
[1724573430172,12.63381065,2751.8,2751.1,3.63481]
[1724573430343,8.99974065,2751.8,2751.1,3.63481]
[1724573430542,3.63414,2751.7,2751.1,3.63481]
[1724573430959,7.46,2752.1,2751.6,3.63421]
[1724573430960,9.7462,2752.1,2751.6,3.63421]
[1724573431163,2.2862,2752.1,2751.6,3.63421]
[1724573432764,5.91979,2752.1,2751.4,3.63439]
[1724573433377,5.91979,2752.1,2751.5,3.63437]
[1724573433594,5.91979,2752.1,2751.5,4.59610428]
[1724573434951,9.7462,2752.4,2751.5,1.03441492]
[1724573435303,9.7462,2752.4,2751.2,0.82394577]
[1724573435304,5.91903,2752.7,2752.0,3.63371]
[1724573435590,9.55194,2752.7,2752.0,3.63371]
[1724573435768,3.7645529,2752.6,2752.0,3.63371]
[1724573436553,0.1315729,2752.6,2752.1,3.63358]
[1724573436897,0.1315729,2752.6,2752.3,3.63332]
[1724573437593,0.1315729,2752.6,2752.2,3.63342]
[1724573438005,0.1315729,2752.6,2752.0,2.493]
[1724573438985,3.63307,2752.5,2751.9,7.34]
[1724573439183,0.1315729,2752.6,2752.0,4.980406]
[1724573439755,0.1315729,2752.6,2752.0,8.614046]
[1724573440290,0.1315729,2752.6,2752.2,3.63345]
[1724573440615,0.1315729,2752.6,2752.3,0.363345]
[1724573440817,0.1315729,2752.6,2752.0,4.980336]
[1724573441156,0.1315729,2752.6,2752.1,3.63358]
[1724573441355,0.1315729,2752.6,2752.3,3.63332]
[1724573443214,6.0262729,2752.6,2752.0,1.346696]
[1724573443372,3.63309,2752.5,2752.0,1.346696]
[1724573444512,3.6332,2752.4,2751.9,7.34]
[1724573445216,3.63309,2752.5,2751.9,7.34]
[1724573445567,7.26624,2752.5,2751.9,7.34]
[1724573445832,3.63333,2752.3,2751.9,7.34]
[1724573446044,3.63359,2752.1,2751.9,7.34]
[1724573446198,3.63372,2752.0,2751.9,7.34]
[1724573446523,3.63372,2752.0,2751.3,9.59962]
[1724573447384,3.63359,2752.1,2751.4,3.6345]
[1724573447584,7.26728,2752.1,2751.4,3.6345]
[1724573448024,3.63359,2752.1,2751.4,3.6345]
[1724573448383,4.93074136,2752.1,2751.3,3.63455]
[1724573448688,4.93074136,2752.1,2751.4,3.6345]
[1724573449025,3.63359,2752.1,2751.5,3.63437]
[1724573449220,2.2617,2752.2,2751.5,5.94119]
[1724573449424,5.89522,2752.2,2751.5,9.57547]
[1724573449804,5.89522,2752.2,2751.5,5.94118]
[1724573449805,3.63362,2752.1,2751.5,5.94118]
[1724573451616,3.63362,2752.1,2751.5,6.898758]
[1724573451819,3.63393,2751.9,2751.2,0.82394577]
[1724573452014,5.90786,2751.8,2751.2,3.6347]
[1724573455243,5.90786,2751.8,2751.1,3.63482]
[1724573455456,3.63433,2751.6,2750.9,3.63508]
[1724573455864,3.63433,2751.6,2751.0,3.635]
[1724573456224,3.63442,2751.5,2750.9,3.63508]
[1724573456427,3.63433,2751.6,2750.9,3.63507]
[1724573456771,3.63433,2751.6,2751.0,3.63492]
[1724573457070,6.71365065,2751.7,2751.1,3.63489]
[1724573458076,3.63431,2751.6,2750.9,4.41884241]
[1724573458567,3.63431,2751.6,2751.0,3.63502]
[1724573460164,3.63431,2751.6,2751.1,3.6349]
[1724573460745,5.90789,2751.8,2751.1,3.6349]
[1724573462480,3.63414,2751.7,2751.1,3.6349]
[1724573464105,3.63414,2751.7,2750.5,5.92183]
[1724573464106,3.63489,2751.2,2750.5,5.92183]
[1724573464591,3.63522,2750.9,2750.3,3.63588]
[1724573465487,7.27049,2750.9,2750.3,3.63588]
[1724573465690,3.63533,2750.8,2750.1,9.55848]
[1724573465995,3.07950065,2750.8,2750.2,3.63608]
[1724573466181,3.07950065,2750.8,2750.1,5.92232]
[1724573466699,3.07950065,2750.8,2750.3,3.63596]
[1724573466884,3.07950065,2750.8,2750.1,5.92235]
[1724573467094,3.07950065,2750.8,2750.3,3.63594]
[1724573467957,3.07950065,2750.8,2750.1,10.150705]
[1724573468185,6.71481065,2750.8,2750.2,3.63605]
[1724573468619,3.07950065,2750.8,2750.2,3.63605]
[1724573469187,6.71482065,2750.8,2750.2,3.63605]
[1724573469388,7.74982272,2750.8,2750.2,3.63605]
[1724573469839,6.08585,2750.7,2750.0,3.63624]
[1724573470031,2.4504,2750.7,2749.9,2.2862]
[1724573470228,3.63578,2750.5,2749.9,5.92265]
[1724573470389,3.63578,2750.5,2749.9,3.63645]
[1724573470841,3.63583,2750.4,2749.7,3.63665]
[1724573471002,3.63636,2750.0,2749.4,3.63705]
[1724573471190,3.07950065,2749.9,2749.2,3.63737]
[1724573471386,3.07950065,2749.9,2749.3,3.63716]
[1724573471586,3.07950065,2749.9,2749.2,4.65043607]
[1724573471790,6.71600065,2749.9,2749.2,8.28775607]
[1724573472206,3.07950065,2749.9,2749.3,3.63726]
[1724573473004,3.07950065,2749.9,2749.4,3.63715]
[1724573473340,6.08681,2750.0,2749.4,3.63715]
[1724573473511,7.36705507,2750.0,2749.4,3.63715]
[1724573473833,7.36705507,2750.0,2749.4,7.27421]
[1724573474207,7.36705507,2750.0,2749.4,3.63706]
[1724573474746,7.36705507,2750.0,2749.3,3.63728]
[1724573475609,7.36705507,2750.0,2749.2,3.63736]
[1724573475610,3.07950065,2749.9,2749.2,3.63736]
[1724573475808,6.71600065,2749.9,2749.2,3.63733]
[1724573476211,3.63673,2749.8,2749.0,7.27526]
[1724573476405,6.02207,2749.7,2749.0,7.27518]
[1724573476616,6.71639065,2749.6,2749.0,3.63759]
[1724573476949,3.63703,2749.5,2748.9,3.63776]
[1724573477849,3.63703,2749.5,2748.5,2.4675]
[1724573477850,6.71682065,2749.3,2748.5,3.63828]
[1724573478048,0.91021207,2749.2,2748.7,3.63808]
[1724573478199,2.3853,2749.4,2748.7,6.10548]
[1724573478394,2.3853,2749.4,2748.8,3.63794]
[1724573480044,2.3853,2749.4,2748.9,3.63781]
[1724573480247,2.3853,2749.4,2748.9,7.27553]
[1724573480442,2.3853,2749.7,2748.8,0.07275234]
[1724573480651,12.21,2750.5,2749.4,3.63713]
[1724573480652,2.3853,2750.0,2749.4,3.63713]
[1724573480799,6.02167,2750.0,2749.4,3.63713]
[1724573481001,2.3853,2750.0,2749.2,3.63734]
[1724573481210,2.3853,2750.0,2749.2,3.63733]
[1724573481211,3.63652,2749.9,2749.2,3.63733]
[1724573481437,3.63652,2749.9,2749.2,4.001063]
[1724573482149,3.63652,2749.9,2749.3,3.63722]
[1724573482526,3.63652,2749.9,2749.2,4.001063]
[1724573482527,2.3853,2750.0,2749.4,3.63715]
[1724573482853,2.3853,2750.0,2749.6,3.63688]
[1724573483078,2.3853,2750.0,2749.4,4.4009713]
[1724573483079,6.71531065,2750.5,2749.9,3.63649]
[1724573483355,3.63589,2750.4,2749.8,3.63654]
[1724573483568,6.71531065,2750.5,2749.6,3.63678]
[1724573483712,6.71531065,2750.5,2749.7,0.363678]
[1724573484874,3.07950065,2750.5,2749.7,0.4364092]
[1724573485011,2.4983,2750.6,2750.1,3.63614]
[1724573485612,3.63544,2750.7,2750.1,3.63614]
[1724573485836,3.63544,2750.7,2750.0,7.27252]
[1724573486163,3.63544,2750.7,2750.1,3.63621]
[1724573486330,3.63544,2750.7,2750.0,3.63626]
[1724573486526,3.63544,2750.7,2750.0,4.595273]
[1724573486823,3.63544,2750.7,2750.0,8.231523]
[1724573487252,3.63544,2750.7,2750.0,4.595263]
[1724573487961,7.27097,2750.7,2750.0,4.595263]
[1724573488156,3.07950065,2750.8,2749.8,3.63662]
[1724573488157,5.91733,2750.4,2749.8,3.63662]
[1724573488319,3.63596,2750.3,2749.8,3.63662]
[1724573489565,3.63617,2750.2,2749.5,9.08145]
[1724573489874,3.63617,2750.2,2749.6,3.63685]
[1724573490019,3.63596,2750.3,2749.6,3.63685]
[1724573490856,2.2814,2750.4,2749.5,7.16302713]
[1724573491022,2.2814,2750.4,2749.8,3.63652]
[1724573491644,2.2814,2750.4,2749.8,7.27306]
[1724573492093,2.2814,2750.4,2749.8,3.63652]
[1724573492704,5.91727,2750.4,2749.8,3.63652]
[1724573493291,7.618573,2750.4,2749.8,3.63652]
[1724573493448,7.27208,2750.3,2749.6,3.6368]
[1724573493652,3.636,2750.3,2749.6,3.6368]
[1724573493846,3.636,2750.3,2749.7,3.63667]
[1724573494505,7.46,2750.6,2750.0,3.63627]
[1724573494650,7.46,2750.6,2750.1,3.63612]
[1724573494860,2.2814,2750.7,2750.1,3.63612]
[1724573495851,5.91683,2750.7,2750.1,3.63612]
[1724573496297,3.6356,2750.6,2750.0,3.63627]
[1724573496593,4.89878507,2750.6,2750.0,7.27255]
[1724573497149,2.2814,2750.7,2750.1,3.63622]
[1724573497801,5.91686,2750.7,2750.1,3.63622]
[1724573498610,5.91686,2750.7,2750.0,3.63627]
[1724573498769,3.63558,2750.6,2750.0,3.63627]
[1724573502714,1.015528,2750.0,2749.8,3.63655]
[1724573502866,1.015528,2750.0,2749.8,4.3473896]
[1724573503305,1.015528,2750.0,2749.6,3.63681]
[1724573504766,1.015528,2750.0,2749.5,7.34]
[1724573505076,1.015528,2750.0,2748.9,3.63778]
[1724573505077,3.6367,2749.8,2749.1,3.63752]
[1724573505411,3.63676,2749.7,2749.1,3.63752]
[1724573505561,3.6367,2749.8,2749.1,3.63747]
[1724573505757,3.6367,2749.8,2749.2,3.63738]
[1724573505758,5.17412578,2749.8,2749.2,3.63738]
[1724573506201,8.81085578,2749.8,2749.1,3.63747]
[1724573506829,3.63701,2749.6,2748.9,7.27549]
[1724573507041,3.63701,2749.6,2749.0,3.6376]
[1724573507335,2.4107,2749.7,2749.1,3.63754]
[1724573507627,3.84080264,2749.7,2749.1,3.63754]
[1724573507823,7.47756264,2749.7,2749.1,3.63754]
[1724573508030,3.63691,2749.6,2748.9,3.63772]
[1724573508207,3.63691,2749.6,2748.9,7.27544]
[1724573508397,3.63691,2749.6,2749.0,3.63764]
[1724573508603,4.90209284,2749.6,2749.0,3.63764]
[1724573511681,2.4107,2749.7,2749.1,5.98242]
[1724573511880,2.4107,2749.7,2749.3,3.63728]
[1724573512278,2.4107,2749.7,2749.1,5.98242]
[1724573512279,2.4107,2749.7,2749.1,9.61986]
[1724573512482,2.4107,2749.7,2749.2,3.63742]
[1724573513421,12.111898,2750.0,2749.3,3.63728]
[1724573513422,14.522598,2750.0,2749.3,3.63728]
[1724573513622,10.886228,2750.0,2749.4,0.363728]
[1724573513841,3.63651,2749.9,2749.4,3.63715]
[1724573514214,3.426228,2750.0,2749.4,3.63715]
[1724573514934,3.63653,2749.9,2749.3,3.63728]
[1724573515139,7.27312,2749.9,2749.3,3.63728]
[1724573515640,3.63653,2749.9,2749.3,3.63728]
[1724573515839,5.0064648,2749.9,2749.1,3.63745]
[1724573516143,3.63704,2749.5,2748.9,3.6377]
[1724573516343,2.4107,2749.6,2749.0,3.63767]
[1724573516818,6.0476,2749.6,2749.0,3.63767]
[1724573516998,6.0476,2749.6,2749.0,4.599697]
[1724573518249,6.0476,2749.6,2749.0,3.63767]
[1724573520971,2.4107,2749.6,2749.1,3.63752]
[1724573521123,3.63674,2749.8,2749.2,3.63732]
[1724573521344,3.63674,2749.8,2749.3,3.63727]
[1724573521694,7.46,2749.9,2749.6,3.63687]
[1724573521896,7.46,2749.9,2749.6,4.000557]
[1724573522950,7.46,2749.9,2749.5,3.63692]
[1724573523588,7.46,2749.9,2749.3,9.59921]
[1724573523798,9.9033,2749.9,2749.3,9.59921]
[1724573524097,2.4433,2749.9,2749.3,9.59921]
[1724573524298,2.4433,2749.9,2749.4,3.63714]
[1724573524849,1.015528,2750.0,2749.5,3.63701]
[1724573525753,1.015528,2750.0,2749.6,3.63688]
[1724573525978,1.015528,2750.0,2749.7,3.63673]
[1724573527385,1.015528,2750.0,2749.5,3.63694]
[1724573527596,1.015528,2750.0,2749.5,7.27384]
[1724573528356,1.015528,2750.0,2749.6,3.63687]
[1724573528989,1.015528,2750.0,2749.5,4.6927553]
[1724573528990,1.015528,2750.0,2749.7,3.63675]
[1724573530697,1.015528,2750.0,2749.8,3.63662]
[1724573530849,1.015528,2750.0,2749.9,3.63649]
[1724573531056,1.015528,2750.0,2749.9,7.27298]
[1724573531287,1.015528,2750.0,2749.9,8.232758]
[1724573534002,2.4433,2751.3,2750.1,3.63617]
[1724573534307,2.4433,2751.3,2750.8,3.63521]
[1724573534758,6.07796,2751.3,2750.8,3.63521]
[1724573534960,0.607796,2751.2,2750.8,3.63521]
[1724573535391,2.44204479,2751.3,2750.8,3.63521]
[1724573535953,2.44204479,2751.3,2750.6,7.27096]
[1724573536199,6.07669479,2751.3,2750.7,3.63542]
[1724573537093,2.44204479,2751.3,2750.7,3.63542]
[1724573537258,2.44204479,2751.3,2750.8,3.6353]
[1724573537699,3.04971027,2751.3,2750.6,3.63545]
[1724573537885,6.68444027,2751.3,2750.6,7.27093]
[1724573538314,6.68444027,2751.3,2750.6,3.63545]
[1724573538599,6.68444027,2751.3,2750.7,3.63541]
[1724573539276,6.68444027,2751.3,2750.6,3.63545]
[1724573539504,6.68444027,2751.3,2750.4,3.63578]
[1724573539505,8.30162503,2751.2,2750.4,3.63578]
[1724573539811,8.30161503,2751.2,2750.6,3.63556]
[1724573540662,8.30162503,2751.2,2750.6,3.63556]
[1724573541711,4.66675503,2751.2,2750.6,3.63556]
[1724573542063,1.03190503,2751.2,2750.7,3.63543]
[1724573542269,2.44204479,2751.3,2750.7,3.63543]
[1724573542597,2.44204479,2751.3,2750.8,3.6353]
[1724573542801,2.4467,2751.5,2751.1,3.63483]
[1724573542975,6.0809,2751.7,2751.1,3.63483]
[1724573543182,1.717496,2751.6,2751.1,3.63483]
[1724573543790,5.351766,2751.6,2750.9,3.63506]
[1724573544519,8.986136,2751.6,2750.9,3.63506]
[1724573544837,3.63439,2751.5,2750.9,3.63506]
[1724573544970,3.63439,2751.5,2750.8,3.63522]
[1724573544971,5.351766,2751.6,2751.0,3.63503]
[1724573545170,0.7798466,2751.5,2751.0,3.63503]
[1724573545472,0.7798466,2751.5,2750.8,7.27042]
[1724573545706,4.4142666,2751.5,2750.9,3.63515]
[1724573546088,0.7798466,2751.5,2750.9,3.63515]
[1724573546398,6.08121,2751.4,2750.8,3.6352]
[1724573546581,4.32076566,2751.3,2750.7,3.63539]
[1724573547574,6.08162,2751.1,2750.6,3.63546]
[1724573547769,6.08162,2751.1,2750.3,3.63593]
[1724573547987,3.63532,2750.8,2750.2,7.27204]
[1724573548190,2.4467,2750.7,2750.2,7.27202]
[1724573548383,2.4467,2750.7,2750.3,3.63594]
[1724573548586,0.608162,2751.0,2750.4,3.63581]
[1724573548587,4.243312,2751.0,2750.4,3.63581]
[1724573548793,6.690012,2751.0,2750.4,3.63581]
[1724573549516,6.71432065,2751.2,2750.4,3.63581]
[1724573549517,6.08152,2751.2,2750.6,3.63549]
[1724573549726,6.08152,2751.2,2750.5,3.63561]
[1724573549727,2.4467,2751.2,2750.7,3.63542]
[1724573550723,2.4467,2751.2,2750.8,3.6353]
[1724573550875,3.63457,2751.4,2750.9,3.63516]
[1724573550876,2.4467,2751.4,2750.9,3.63516]
[1724573551329,2.4467,2751.4,2750.9,3.63507]
[1724573551559,10.46,2751.6,2751.1,3.63489]
[1724573551826,7.46,2751.6,2751.1,3.63489]
[1724573551970,11.09426,2751.6,2751.1,3.63489]
[1724573552521,11.09426,2751.6,2750.9,9.66764]
[1724573552671,3.63441,2751.5,2750.9,3.63507]
[1724573552876,4.988506,2751.5,2750.9,3.63507]
[1724573554579,2.4467,2751.2,2750.7,3.63536]
[1724573555372,2.4467,2751.2,2750.5,3.63566]
[1724573555373,2.4467,2751.2,2750.5,3.63563]
[1724573555577,2.4467,2751.2,2750.6,3.63556]
[1724573555578,3.63498,2751.1,2750.6,3.63556]
[1724573556022,3.63498,2751.1,2750.5,3.63562]
[1724573556201,3.63498,2751.1,2750.5,7.27125]
[1724573557020,2.4467,2751.2,2750.6,3.63553]
[1724573557295,6.08147,2751.2,2750.6,3.63553]
[1724573558090,6.08147,2751.2,2750.5,3.63562]
[1724573558091,2.4467,2751.2,2750.5,3.63557]
[1724573558436,6.08156,2751.2,2750.5,3.63557]
[1724573558734,2.4467,2751.2,2750.6,3.63545]
[1724573559143,2.4467,2751.2,2750.7,3.63543]
[1724573559637,2.4467,2751.2,2750.8,3.6353]
[1724573560000,6.08442,2751.5,2750.9,3.63509]
[1724573560395,6.08442,2751.5,2750.9,7.27019]
[1724573560638,2.45,2751.5,2751.0,3.635]
[1724573561399,7.46,2751.6,2751.1,3.63482]
[1724573561742,7.46,2751.6,2751.2,3.63466]
[1724573562097,2.4046,2752.2,2751.6,3.6342]
[1724573562299,2.4046,2752.2,2751.4,0.07268994]
[1724573563244,3.89907919,2752.6,2752.0,3.63362]
[1724573563566,3.89907919,2752.6,2752.0,3.63371]
[1724573563921,7.53203919,2752.6,2752.0,3.63371]
[1724573565271,3.89907919,2752.6,2752.0,3.63371]
[1724573566019,7.53202919,2752.6,2752.0,3.63371]
[1724573566667,2.5361729,2752.6,2752.0,3.63371]
[1724573566872,2.5361729,2752.6,2751.8,3.63387]
[1724573567177,3.63327,2752.4,2751.8,3.63387]
[1724573568071,3.63356,2752.2,2751.5,3.63429]
[1724573568226,3.131291,2752.1,2751.3,10.31580145]